fUSD/lending_fUSD_20250618
["ID","MTS","AMOUNT","RATE_DAILY","PERIOD"]
[366366796,1750216269437,-490.0,0.00016931,2]
[366366797,1750216269447,-490.0,0.00016931,2]
[366366798,1750216269457,-490.0,0.00016931,2]
[366366799,1750216269467,-689.19,0.00016931,2]
[366366800,1750216269477,-819.39,0.00016931,2]
[366366801,1750216269487,-612.0,0.00016931,2]
[366366802,1750216269497,-490.0,0.00016931,2]
[366366803,1750216269511,-490.0,0.00016931,2]
[366366804,1750216269523,-490.0,0.00016931,2]
[366366805,1750216269533,-1453.24,0.00016931,2]
[366366806,1750216269853,-490.0,0.00016931,2]
[366366807,1750216269886,-816.88,0.00016931,2]
[366366808,1750216269895,-490.0,0.00016931,2]
[366366809,1750216269906,-953.36,0.00016931,2]
[366366810,1750216269916,-572.28,0.00016931,2]
[366366811,1750216269925,-490.0,0.00016931,2]
[366366812,1750216269935,-490.0,0.00016931,2]
[366366813,1750216269945,-490.0,0.00016931,2]
[366366814,1750216269954,-490.0,0.00016931,2]
[366366815,1750216269964,-1452.82,0.00016931,2]
[366366816,1750216269974,-1120.55,0.00016931,2]
[366366817,1750216269985,-1546.34,0.00016931,2]
[366366818,1750216269994,-490.0,0.00016931,2]
[366366819,1750216270006,-490.0,0.00016931,2]
[366366820,1750216270016,-490.0,0.00016931,2]
[366366821,1750216270026,-490.0,0.00016931,2]
[366366822,1750216270036,-490.0,0.00016931,2]
[366366823,1750216270045,-606.59,0.00016931,2]
[366366824,1750216270055,-490.0,0.00016931,2]
[366366825,1750216270064,-490.0,0.00016931,2]
[366366826,1750216270073,-490.0,0.00016931,2]
[366366827,1750216270083,-662.51,0.00016931,2]
[366366828,1750216270092,-490.0,0.00016931,2]
[366366829,1750216270102,-816.24,0.00016931,2]
[366366830,1750216270111,-490.0,0.00016931,2]
[366366831,1750216270122,-490.0,0.00016931,2]
[366366832,1750216270132,-490.0,0.00016931,2]
[366366833,1750216270142,-490.0,0.00016931,2]
[366366834,1750216270152,-490.0,0.00016931,2]
[366366835,1750216270163,-490.0,0.00016931,2]
[366366836,1750216270173,-490.0,0.00016931,2]
[366366837,1750216270183,-490.0,0.00016931,2]
[366366838,1750216270193,-490.0,0.00016931,2]
[366366839,1750216270203,-490.0,0.00016931,2]
[366366840,1750216270213,-1093.36,0.00016931,2]
[366366841,1750216270223,-490.0,0.00016931,2]
[366366842,1750216270233,-490.0,0.00016931,2]
[366366843,1750216270243,-490.0,0.00016931,2]
[366366844,1750216270252,-490.0,0.00016931,2]
[366366845,1750216270262,-717.72,0.00016931,2]
[366366846,1750216270272,-490.0,0.00016931,2]
[366366847,1750216270282,-490.0,0.00016931,2]
[366366848,1750216270292,-490.0,0.00016931,2]
[366366849,1750216270302,-490.0,0.00016931,2]
[366366850,1750216270312,-490.0,0.00016931,2]
[366366851,1750216270321,-490.0,0.00016931,2]
[366366852,1750216270331,-490.0,0.00016931,2]
[366366853,1750216270341,-865.2,0.00016931,2]
[366366854,1750216270351,-664.54,0.00016931,2]
[366366855,1750216270362,-490.0,0.00016931,2]
[366366856,1750216270376,-490.0,0.00016931,2]
[366366857,1750216270385,-490.0,0.00016931,2]
[366366858,1750216270395,-537.74,0.00016931,2]
[366366859,1750216270404,-1092.63,0.00016931,2]
[366366860,1750216270414,-894.64,0.00016931,2]
[366366861,1750216270424,-578.95,0.00016931,2]
[366366862,1750216270433,-490.0,0.00016931,2]
[366366863,1750216270444,-471.84794786,0.00016931,2]
[366366864,1750216270453,-553.54,0.00016931,2]
[366366865,1750216270463,-461.39569436,0.00016931,2]
[366366866,1750216270473,-490.0,0.00016931,2]
[366366867,1750216270483,-1456.29,0.00016931,2]
[366366868,1750216270493,-490.0,0.00016931,2]
[366366869,1750216270503,-490.0,0.00016931,2]
[366366870,1750216270512,-256.38553293,0.00016931,2]
[366366871,1750216270522,-490.0,0.00016931,2]
[366366872,1750216270532,-490.0,0.00016931,2]
[366366873,1750216270542,-1208.02,0.00016931,2]
[366366874,1750216270551,-769.05,0.00016931,2]
[366366875,1750216270561,-926.37,0.00016931,2]
[366366876,1750216270571,-490.0,0.00016931,2]
[366366877,1750216270580,-490.0,0.00016931,2]
[366366878,1750216270591,-561.31,0.00016931,2]
[366366879,1750216270601,-490.0,0.00016931,2]
[366366880,1750216270611,-490.0,0.00016931,2]
[366366881,1750216270620,-924.35,0.00016931,2]
[366366882,1750216270630,-490.0,0.00016931,2]
[366366883,1750216270640,-638.39,0.00016931,2]
[366366884,1750216270650,-419.47429114,0.00016931,2]
[366366885,1750216270660,-490.0,0.00016931,2]
[366366886,1750216270670,-537.19,0.00016931,2]
[366366887,1750216270680,-490.0,0.00016931,2]
[366366888,1750216270689,-973.44,0.00016931,2]
[366366889,1750216270699,-490.0,0.00016931,2]
[366366890,1750216270708,-715.34,0.00016931,2]
[366366891,1750216270718,-490.0,0.00016931,2]
[366366892,1750216270727,-490.0,0.00016931,2]
[366366893,1750216270737,-490.0,0.00016931,2]
[366366894,1750216270747,-642.73,0.00016931,2]
[366366895,1750216270758,-490.0,0.00016931,2]
[366366896,1750216270768,-490.0,0.00016931,2]
[366366897,1750216270777,-1229.5,0.00016931,2]
[366366898,1750216270787,-945.47,0.00016931,2]
[366366899,1750216270797,-490.0,0.00016931,2]
[366366900,1750216270807,-490.0,0.00016931,2]
[366366901,1750216270817,-498.45,0.00016931,2]
[366366902,1750216270827,-816.484327,0.00016931,2]
[366366903,1750216270836,-490.0,0.00016931,2]
[366366904,1750216270846,-490.0,0.00016931,2]
[366366905,1750216270856,-1297.48,0.00016931,2]
[366366906,1750216270867,-496.01,0.00016931,2]
[366366907,1750216270877,-490.0,0.00016931,2]
[366366908,1750216270887,-490.0,0.00016931,2]
[366366909,1750216270897,-652.74,0.00016931,2]
[366366910,1750216270907,-490.0,0.00016931,2]
[366366911,1750216270917,-490.0,0.00016931,2]
[366366912,1750216270927,-871.38,0.00016931,2]
[366366913,1750216270937,-490.0,0.00016931,2]
[366366914,1750216270947,-490.0,0.00016931,2]
[366366915,1750216270956,-559.89,0.00016931,2]
[366366916,1750216270966,-490.0,0.00016931,2]
[366366917,1750216270975,-1698.47,0.00016931,2]
[366366918,1750216270985,-408.63394577,0.00016931,2]
[366366919,1750216270994,-989.96,0.00016931,2]
[366366920,1750216271006,-523.79,0.00016931,2]
[366366921,1750216271015,-557.67,0.00016931,2]
[366366922,1750216271025,-357.47,0.00016931,2]
[366366923,1750216271034,-622.94,0.00016931,2]
[366366924,1750216271044,-919.64,0.00016931,2]
[366366925,1750216271054,-298.07663356,0.00016931,2]
[366366926,1750216271064,-584.97,0.00016931,2]
[366366927,1750216271075,-490.0,0.00016931,2]
[366366928,1750216271084,-825.43,0.00016931,2]
[366366929,1750216271094,-490.0,0.00016931,2]
[366366930,1750216271104,-490.0,0.00016931,2]
[366366931,1750216271113,-490.0,0.00016931,2]
[366366932,1750216271122,-636.09,0.00016931,2]
[366366933,1750216271132,-490.0,0.00016931,2]
[366366934,1750216271142,-1285.01,0.00016931,2]
[366366935,1750216271151,-655.88,0.00016931,2]
[366366936,1750216271161,-772.7,0.00016931,2]
[366366937,1750216271170,-769.82,0.00016931,2]
[366366938,1750216271179,-490.0,0.00016931,2]
[366366939,1750216271188,-1158.81,0.00016931,2]
[366366940,1750216271198,-845.84,0.00016931,2]
[366366941,1750216271208,-490.0,0.00016931,2]
[366366942,1750216271217,-798.39,0.00016931,2]
[366366943,1750216271227,-490.0,0.00016931,2]
[366366944,1750216271237,-654.64,0.00016931,2]
[366366945,1750216271246,-490.0,0.00016931,2]
[366366946,1750216271257,-917.19,0.00016931,2]
[366366947,1750216271266,-1854.96,0.00016931,2]
[366366948,1750216271276,-490.0,0.00016931,2]
[366366949,1750216271286,-490.0,0.00016931,2]
[366366950,1750216271296,-490.0,0.00016931,2]
[366366951,1750216271306,-1358.49,0.00016931,2]
[366366952,1750216271315,-724.57,0.00016931,2]
[366366953,1750216271325,-185.76293685,0.00016931,2]
[366366954,1750216271335,-490.0,0.00016931,2]
[366366955,1750216271344,-564.18,0.00016931,2]
[366366956,1750216271353,-490.0,0.00016931,2]
[366366957,1750216271363,-536.62,0.00016931,2]
[366366958,1750216271376,-1367.23,0.00016931,2]
[366366959,1750216271386,-780.23,0.00016931,2]
[366366960,1750216271395,-730.36,0.00016931,2]
[366366961,1750216271404,-1023.41,0.00016931,2]
[366366962,1750216271415,-490.0,0.00016931,2]
[366366963,1750216271424,-397.95112098,0.00016931,2]
[366366964,1750216271434,-1345.46,0.00016931,2]
[366366965,1750216271443,-490.0,0.00016931,2]
[366366966,1750216271453,-490.0,0.00016931,2]
[366366967,1750216271462,-490.0,0.00016931,2]
[366366968,1750216271472,-517.99,0.00016931,2]
[366366969,1750216271482,-1579.09,0.00016931,2]
[366366970,1750216271491,-454.8105435,0.00016931,2]
[366366971,1750216271502,-796.74,0.00016931,2]
[366366972,1750216271512,-490.0,0.00016931,2]
[366366973,1750216271522,-490.0,0.00016931,2]
[366366974,1750216271531,-1823.89,0.00016931,2]
[366366975,1750216271541,-490.0,0.00016931,2]
[366366976,1750216271550,-300.0,0.00016931,2]
[366366977,1750216271559,-490.0,0.00016931,2]
[366366978,1750216271569,-1403.26,0.00016931,2]
[366366979,1750216271579,-490.0,0.00016931,2]
[366366980,1750216271588,-694.16,0.00016931,2]
[366366981,1750216271599,-490.0,0.00016931,2]
[366366982,1750216271609,-1140.11,0.00016931,2]
[366366983,1750216271618,-490.0,0.00016931,2]
[366366984,1750216271628,-1063.88,0.00016931,2]
[366366985,1750216271639,-490.0,0.00016931,2]
[366366986,1750216271649,-901.28,0.00016931,2]
[366366987,1750216271659,-560.13,0.00016931,2]
[366366988,1750216271670,-490.0,0.00016931,2]
[366366989,1750216271679,-1185.99,0.00016931,2]
[366366990,1750216271689,-702.65,0.00016931,2]
[366366991,1750216271699,-592.87,0.00016931,2]
[366366992,1750216271709,-743.35,0.00016931,2]
[366366993,1750216271718,-490.0,0.00016931,2]
[366366994,1750216271728,-923.1,0.00016931,2]
[366366995,1750216271738,-490.0,0.00016931,2]
[366366996,1750216271747,-1220.84,0.00016931,2]
[366366997,1750216271758,-1406.34,0.00016931,2]
[366366998,1750216271768,-529.54,0.00016931,2]
[366366999,1750216271778,-753.25,0.00016931,2]
[366367000,1750216271787,-490.0,0.00016931,2]
[366367001,1750216271797,-490.0,0.00016931,2]
[366367002,1750216271807,-490.0,0.00016931,2]
[366367003,1750216271816,-1243.62,0.00016931,2]
[366367004,1750216271826,-490.0,0.00016931,2]
[366367005,1750216271835,-490.0,0.00016931,2]
[366367006,1750216271844,-573.77,0.00016931,2]
[366367007,1750216271854,-490.0,0.00016931,2]
[366367008,1750216271864,-1502.24,0.00016931,2]
[366367009,1750216271874,-490.0,0.00016931,2]
[366367010,1750216271884,-975.12,0.00016931,2]
[366367011,1750216271894,-609.03,0.00016931,2]
[366367012,1750216271904,-782.66,0.00016931,2]
[366367013,1750216271913,-1260.7,0.00016931,2]
[366367014,1750216271923,-490.0,0.00016931,2]
[366367015,1750216271932,-743.73,0.00016931,2]
[366367016,1750216271941,-490.0,0.00016931,2]
[366367017,1750216271951,-490.0,0.00016931,2]
[366367018,1750216271960,-809.38,0.00016931,2]
[366367019,1750216271970,-490.0,0.00016931,2]
[366367020,1750216271980,-490.0,0.00016931,2]
[366367021,1750216271990,-796.12,0.00016931,2]
[366367022,1750216271999,-734.29,0.00016931,2]
[366367023,1750216272009,-490.0,0.00016931,2]
[366367024,1750216272018,-490.0,0.00016931,2]
[366367025,1750216272028,-262.99744907,0.00016931,2]
[366367026,1750216272037,-664.37,0.00016931,2]
[366367027,1750216272047,-1325.84,0.00016931,2]
[366367028,1750216272057,-490.0,0.00016931,2]
[366367029,1750216272066,-490.0,0.00016931,2]
[366367030,1750216272076,-490.0,0.00016931,2]
[366367031,1750216272085,-889.77,0.00016931,2]
[366367032,1750216272095,-490.0,0.00016931,2]
[366367033,1750216272105,-1218.6,0.00016931,2]
[366367034,1750216272114,-581.77,0.00016931,2]
[366367035,1750216272123,-1107.33,0.00016931,2]
[366367036,1750216272133,-490.0,0.00016931,2]
[366367037,1750216272142,-615.89,0.00016931,2]
[366367038,1750216272152,-490.0,0.00016931,2]
[366367039,1750216272161,-490.0,0.00016931,2]
[366367040,1750216272171,-728.07,0.00016931,2]
[366367041,1750216272180,-999.68,0.00016931,2]
[366367042,1750216272189,-490.0,0.00016931,2]
[366367043,1750216272199,-490.0,0.00016931,2]
[366367044,1750216272208,-602.23145944,0.00016931,2]
[366367045,1750216272218,-828.64,0.00016931,2]
[366367046,1750216272301,-490.0,0.00016931,2]
[366367047,1750216272311,-490.0,0.00016931,2]
[366367048,1750216272322,-883.36,0.00016931,2]
[366367049,1750216272331,-490.0,0.00016931,2]
[366367050,1750216272341,-1729.6,0.00016931,2]
[366367051,1750216272350,-840.13,0.00016931,2]
[366367052,1750216272360,-490.0,0.00016931,2]
[366367053,1750216272372,-490.0,0.00016931,2]
[366367054,1750216272382,-490.0,0.00016931,2]
[366367055,1750216272391,-490.0,0.00016931,2]
[366367056,1750216272401,-490.0,0.00016931,2]
[366367057,1750216272412,-891.85,0.00016931,2]
[366367058,1750216272422,-490.0,0.00016931,2]
[366367059,1750216272432,-784.78,0.00016931,2]
[366367060,1750216272441,-490.0,0.00016931,2]
[366367061,1750216272452,-1004.42,0.00016931,2]
[366367062,1750216272463,-569.25,0.00016931,2]
[366367063,1750216272473,-1963.69,0.00016931,2]
[366367064,1750216272483,-490.0,0.00016931,2]
[366367065,1750216272493,-490.0,0.00016931,2]
[366367066,1750216272505,-624.29,0.00016931,2]
[366367067,1750216272515,-1875.99,0.00016931,2]
[366367068,1750216272524,-490.0,0.00016931,2]
[366367069,1750216272534,-490.0,0.00016931,2]
[366367070,1750216272548,-490.0,0.00016931,2]
[366367071,1750216272561,-554.61,0.00016931,2]
[366367072,1750216272571,-490.0,0.00016931,2]
[366367073,1750216272581,-1304.67,0.00016931,2]
[366367074,1750216272591,-490.0,0.00016931,2]
[366367075,1750216272601,-490.0,0.00016931,2]
[366367076,1750216272611,-621.5,0.00016931,2]
[366367077,1750216272621,-490.0,0.00016931,2]
[366367078,1750216272631,-490.0,0.00016931,2]
[366367079,1750216272641,-490.0,0.00016931,2]
[366367080,1750216272650,-490.0,0.00016931,2]
[366367081,1750216272660,-2178.02,0.00016931,2]
[366367082,1750216272670,-490.0,0.00016931,2]
[366367083,1750216272679,-490.0,0.00016931,2]
[366367084,1750216272689,-490.0,0.00016931,2]
[366367085,1750216272699,-683.27,0.00016931,2]
[366367086,1750216272708,-544.93,0.00016931,2]
[366367087,1750216272718,-490.0,0.00016931,2]
[366367088,1750216272728,-490.0,0.00016931,2]
[366367089,1750216272738,-632.23,0.00016931,2]
[366367090,1750216272748,-595.44,0.00016931,2]
[366367091,1750216272759,-490.0,0.00016931,2]
[366367092,1750216272769,-490.0,0.00016931,2]
[366367093,1750216272779,-2080.14,0.00016931,2]
[366367094,1750216272788,-490.0,0.00016931,2]
[366367095,1750216272798,-490.0,0.00016931,2]
[366367096,1750216272808,-490.0,0.00016931,2]
[366367097,1750216272818,-766.79,0.00016931,2]
[366367098,1750216272827,-1101.57,0.00016931,2]
[366367099,1750216272837,-490.0,0.00016931,2]
[366367100,1750216272846,-527.76,0.00016931,2]
[366367101,1750216272855,-517.55,0.00016931,2]
[366367102,1750216272865,-490.0,0.00016931,2]
[366367103,1750216272875,-409.14129119,0.00016931,2]
[366367104,1750216272884,-490.0,0.00016931,2]
[366367105,1750216272894,-490.0,0.00016931,2]
[366367106,1750216272904,-490.0,0.00016931,2]
[366367107,1750216272913,-490.0,0.00016931,2]
[366367108,1750216272923,-490.0,0.00016931,2]
[366367109,1750216272932,-1448.51,0.00016931,2]
[366367110,1750216272943,-490.0,0.00016931,2]
[366367111,1750216272953,-317.48841227,0.00016931,2]
[366367112,1750216272963,-1121.77,0.00016931,2]
[366367113,1750216272972,-500.08,0.00016931,2]
[366367114,1750216272982,-570.48380333,0.00016931,2]
[366367115,1750216272992,-1027.36,0.00016931,2]
[366367116,1750216273002,-1519.24,0.00016931,2]
[366367117,1750216273012,-490.0,0.00016931,2]
[366367118,1750216273022,-1013.2,0.00016931,2]
[366367119,1750216273031,-1455.94,0.00016931,2]
[366367120,1750216273041,-490.0,0.00016931,2]
[366367121,1750216273050,-490.0,0.00016931,2]
[366367122,1750216273060,-490.0,0.00016931,2]
[366367123,1750216273070,-490.0,0.00016931,2]
[366367124,1750216273079,-490.0,0.00016931,2]
[366367125,1750216273089,-490.0,0.00016931,2]
[366367126,1750216273099,-811.19,0.00016931,2]
[366367127,1750216273110,-490.0,0.00016931,2]
[366367128,1750216273120,-490.0,0.00016931,2]
[366367129,1750216273130,-490.0,0.00016931,2]
[366367130,1750216273140,-490.0,0.00016931,2]
[366367131,1750216273151,-734.81,0.00016931,2]
[366367132,1750216273161,-748.09,0.00016931,2]
[366367133,1750216273170,-490.0,0.00016931,2]
[366367134,1750216273179,-1374.38,0.00016931,2]
[366367135,1750216273187,-490.0,0.00016931,2]
[366367136,1750216273197,-614.9,0.00016931,2]
[366367137,1750216273206,-528.95,0.00016931,2]
[366367138,1750216273216,-684.62,0.00016931,2]
[366367139,1750216273226,-490.0,0.00016931,2]
[366367140,1750216273235,-1834.1,0.00016931,2]
[366367141,1750216273245,-490.0,0.00016931,2]
[366367142,1750216273256,-490.0,0.00016931,2]
[366367143,1750216273266,-1695.62,0.00016931,2]
[366367144,1750216273275,-492.02,0.00016931,2]
[366367145,1750216273285,-1441.32,0.00016931,2]
[366367146,1750216273294,-490.0,0.00016931,2]
[366367147,1750216273305,-490.0,0.00016931,2]
[366367148,1750216273314,-534.39,0.00016931,2]
[366367149,1750216273324,-718.91,0.00016931,2]
[366367150,1750216273334,-490.0,0.00016931,2]
[366367151,1750216273343,-682.49,0.00016931,2]
[366367152,1750216273353,-1281.16,0.00016931,2]
[366367153,1750216273363,-490.0,0.00016931,2]
[366367154,1750216273376,-2270.6,0.00016931,2]
[366367155,1750216273386,-490.0,0.00016931,2]
[366367156,1750216273396,-1361.78,0.00016931,2]
[366367157,1750216273405,-720.31,0.00016931,2]
[366367158,1750216273416,-741.81,0.00016931,2]
[366367159,1750216273425,-2640.8,0.00016931,2]
[366367160,1750216273435,-490.0,0.00016931,2]
[366367161,1750216273445,-628.62,0.00016931,2]
[366367162,1750216273456,-1987.64,0.00016931,2]
[366367163,1750216273465,-565.49,0.00016931,2]
[366367164,1750216273474,-490.0,0.00016931,2]
[366367165,1750216273483,-502.24,0.00016931,2]
[366367166,1750216273493,-1519.52,0.00016931,2]
[366367167,1750216273503,-495.99,0.00016931,2]
[366367168,1750216273513,-614.59,0.00016931,2]
[366367169,1750216273522,-1656.05,0.00016931,2]
[366367170,1750216273532,-1672.05,0.00016931,2]
[366367171,1750216273541,-490.0,0.00016931,2]
[366367172,1750216273550,-490.0,0.00016931,2]
[366367173,1750216273560,-2032.86,0.00016931,2]
[366367174,1750216273569,-2649.19,0.00016931,2]
[366367175,1750216273578,-490.0,0.00016931,2]
[366367176,1750216273588,-490.0,0.00016931,2]
[366367177,1750216273598,-895.85,0.00016931,2]
[366367178,1750216273607,-490.0,0.00016931,2]
[366367179,1750216273617,-490.0,0.00016931,2]
[366367180,1750216273627,-490.0,0.00016931,2]
[366367181,1750216273636,-793.89,0.00016931,2]
[366367182,1750216273646,-1208.61,0.00016931,2]
[366367183,1750216273656,-490.0,0.00016931,2]
[366367184,1750216273665,-1000.0,0.00016931,2]
[366367185,1750216273675,-490.0,0.00016931,2]
[366367186,1750216273684,-1899.28,0.00016931,2]
[366367187,1750216273694,-946.58,0.00016931,2]
[366367188,1750216273703,-490.0,0.00016931,2]
[366367189,1750216273713,-490.0,0.00016931,2]
[366367190,1750216273723,-490.0,0.00016931,2]
[366367191,1750216273732,-490.0,0.00016931,2]
[366367192,1750216273741,-569.13,0.00016931,2]
[366367193,1750216273750,-1137.29,0.00016931,2]
[366367194,1750216273761,-490.0,0.00016931,2]
[366367195,1750216273770,-576.04,0.00016931,2]
[366367196,1750216273780,-490.0,0.00016931,2]
[366367197,1750216273789,-490.63,0.00016931,2]
[366367198,1750216273799,-490.0,0.00016931,2]
[366367199,1750216273808,-616.34,0.00016931,2]
[366367200,1750216273818,-539.66,0.00016931,2]
[366367201,1750216273827,-1365.0,0.00016931,2]
[366367202,1750216273837,-490.0,0.00016931,2]
[366367203,1750216273848,-1553.22,0.00016931,2]
[366367204,1750216273858,-793.19,0.00016931,2]
[366367205,1750216273867,-2282.04,0.00016931,2]
[366367206,1750216273876,-1122.84,0.00016931,2]
[366367207,1750216273885,-493.42,0.00016931,2]
[366367208,1750216273895,-1800.52,0.00016931,2]
[366367209,1750216273904,-705.15,0.00016931,2]
[366367210,1750216273913,-21611.81,0.00016931,2]
[366367211,1750216273922,-490.0,0.00016931,2]
[366367212,1750216273931,-490.0,0.00016931,2]
[366367213,1750216273941,-490.0,0.00016931,2]
[366367214,1750216273949,-1095.24,0.00016931,2]
[366367215,1750216273959,-1719.09,0.00016931,2]
[366367216,1750216273968,-515.64478321,0.00016931,2]
[366367217,1750216273977,-490.0,0.00016931,2]
[366367218,1750216273986,-1058.99,0.00016931,2]
[366367219,1750216273996,-490.0,0.00016931,2]
[366367220,1750216274006,-908.79,0.00016931,2]
[366367221,1750216274016,-841.68,0.00016931,2]
[366367222,1750216274026,-187.07004153,0.00016931,2]
[366367223,1750216274035,-721.22,0.00016931,2]
[366367224,1750216274044,-584.12,0.00016931,2]
[366367225,1750216274053,-490.0,0.00016931,2]
[366367226,1750216274063,-6203.59,0.00016931,2]
[366367227,1750216274072,-1710.1,0.00016931,2]
[366367228,1750216274081,-490.0,0.00016931,2]
[366367229,1750216274090,-4948.11,0.00016931,2]
[366367230,1750216274100,-1328.84,0.00016931,2]
[366367231,1750216274109,-168.94813496,0.00016931,2]
[366367232,1750216274119,-3413.49,0.00016931,2]
[366367233,1750216274129,-490.0,0.00016931,2]
[366367234,1750216274139,-2114.15,0.00016931,2]
[366367235,1750216274148,-604.86,0.00016931,2]
[366367236,1750216274158,-1378.75,0.00016931,2]
[366367237,1750216274167,-761.95,0.00016931,2]
[366367238,1750216274177,-490.0,0.00016931,2]
[366367239,1750216274186,-1142.76,0.00016931,2]
[366367240,1750216274195,-490.0,0.00016931,2]
[366367241,1750216274205,-608.15,0.00016931,2]
[366367242,1750216274214,-490.0,0.00016931,2]
[366367243,1750216274223,-693.17,0.00016931,2]
[366367244,1750216274233,-1232.19,0.00016931,2]
[366367245,1750216274242,-3890.87,0.00016931,2]
[366367246,1750216274251,-971.38,0.00016931,2]
[366367247,1750216274261,-501.84947481,0.00016931,2]
[366367248,1750216274271,-490.0,0.00016931,2]
[366367249,1750216274281,-490.0,0.00016931,2]
[366367250,1750216274290,-490.0,0.00016931,2]
[366367251,1750216274300,-2166.48,0.00016931,2]
[366367252,1750216274309,-2877.98,0.00016931,2]
[366367253,1750216274319,-490.0,0.00016931,2]
[366367254,1750216274328,-1482.11,0.00016931,2]
[366367255,1750216274337,-1429.85,0.00016931,2]
[366367256,1750216274346,-490.0,0.00016931,2]
[366367257,1750216274356,-2523.25,0.00016931,2]
[366367258,1750216274365,-1163.59,0.00016931,2]
[366367259,1750216274379,-1796.16,0.00016931,2]
[366367260,1750216274388,-8180.45,0.00016931,2]
[366367261,1750216274397,-594.76,0.00016931,2]
[366367262,1750216274406,-6971.86,0.00016931,2]
[366367263,1750216274416,-522.11,0.00016931,2]
[366367264,1750216274425,-619.96,0.00016931,2]
[366367265,1750216274435,-3009.37,0.00016931,2]
[366367266,1750216274444,-2580.71,0.00016931,2]
[366367267,1750216274454,-3648.97,0.00016931,2]
[366367268,1750216274464,-1307.49,0.00016931,2]
[366367269,1750216274474,-1286.27,0.00016931,2]
[366367270,1750216274483,-1942.9,0.00016931,2]
[366367271,1750216274493,-876.51,0.00016931,2]
[366367272,1750216274503,-3605.22,0.00016931,2]
[366367273,1750216274514,-809.73,0.00016931,2]
[366367274,1750216274523,-490.0,0.00016931,2]
[366367275,1750216274532,-1781.59,0.00016931,2]
[366367276,1750216274543,-467.93602162,0.00016931,2]
[366367277,1750216274552,-2146.54,0.00016931,2]
[366367278,1750216274562,-867.36,0.00016931,2]
[366367279,1750216274572,-2203.13,0.00016931,2]
[366367280,1750216274582,-490.0,0.00016931,2]
[366367281,1750216274592,-9780.84,0.00016931,2]
[366367282,1750216274602,-490.0,0.00016931,2]
[366367283,1750216274615,-3655.92,0.00016931,2]
[366367284,1750216274625,-490.0,0.00016931,2]
[366367285,1750216274635,-494.62,0.00016931,2]
[366367286,1750216274646,-2691.97,0.00016931,2]
[366367287,1750216274656,-490.0,0.00016931,2]
[366367288,1750216274666,-2584.84,0.00016931,2]
[366367289,1750216274677,-1785.16,0.00016931,2]
[366367290,1750216274687,-2767.56,0.00016931,2]
[366367291,1750216274697,-637.63,0.00016931,2]
[366367292,1750216274708,-2434.96,0.00016931,2]
[366367293,1750216274718,-490.0,0.00016931,2]
[366367294,1750216274727,-1941.93,0.00016931,2]
[366367295,1750216274737,-5601.07,0.00016931,2]